[Event "Early-Titled-Tuesday-Blitz-September-12-2023"]
[Site "Chess.com"]
[Date "2023.09.12"]
[Round "7"]
[White "Polish_fighter3000"]
[Black "lachesisQ"]
[Result "1-0"]
[WhiteElo "3082"]
[BlackElo "3077"]
[TimeControl "180+1"]
[EndTime "9:19:38 PDT"]
[Termination "Polish_fighter3000 won by resignation"]

1. d4 {[%clk 0:03:00.9]} 1... Nf6 {[%clk 0:02:59.7]} 2. c4 {[%clk 0:03:00.1]}
2... e6 {[%clk 0:02:59.7]} 3. Nf3 {[%clk 0:03:00.1]} 3... d5 {[%clk 0:02:59.5]}
4. Nc3 {[%clk 0:02:59.7]} 4... Be7 {[%clk 0:03:00]} 5. Bg5 {[%clk 0:02:58.4]}
5... h6 {[%clk 0:02:59.4]} 6. Bxf6 {[%clk 0:02:55.4]} 6... Bxf6 {[%clk
0:02:59.7]} 7. e3 {[%clk 0:02:55.7]} 7... O-O {[%clk 0:02:59]} 8. Rc1 {[%clk
0:02:52.4]} 8... c6 {[%clk 0:02:58]} 9. Bd3 {[%clk 0:02:49.3]} 9... Nd7 {[%clk
0:02:57.8]} 10. O-O {[%clk 0:02:49.1]} 10... g6 {[%clk 0:02:57.7]} 11. e4 {[%clk
0:02:42.6]} 11... dxc4 {[%clk 0:02:56.7]} 12. Bxc4 {[%clk 0:02:42.7]} 12... Bg7
{[%clk 0:02:56.4]} 13. Qe2 {[%clk 0:02:40.3]} 13... b5 {[%clk 0:02:55.1]} 14.
Bd3 {[%clk 0:02:30.7]} 14... Bb7 {[%clk 0:02:55.2]} 15. Rfd1 {[%clk 0:02:29.8]}
15... a6 {[%clk 0:02:53]} 16. e5 {[%clk 0:02:21.6]} 16... c5 {[%clk 0:02:53]}
17. Be4 {[%clk 0:02:19.6]} 17... Qb6 {[%clk 0:02:42.6]} 18. Bxb7 {[%clk
0:01:39.9]} 18... Qxb7 {[%clk 0:02:42.5]} 19. dxc5 {[%clk 0:01:40.4]} 19... Nxc5
{[%clk 0:02:39.6]} 20. Nxb5 {[%clk 0:01:41]} 20... axb5 {[%clk 0:02:37.3]} 21.
Rxc5 {[%clk 0:01:40.6]} 21... Rxa2 {[%clk 0:02:32.4]} 22. Rxb5 {[%clk 0:01:37]}
22... Qa6 {[%clk 0:02:32.5]} 23. Qd3 {[%clk 0:01:32.2]} 23... Rc8 {[%clk
0:02:24.8]} 24. h4 {[%clk 0:01:22.9]} 24... Ra1 {[%clk 0:02:12.3]} 25. Rxa1
{[%clk 0:01:09.2]} 25... Qxa1+ {[%clk 0:02:13.2]} 26. Kh2 {[%clk 0:01:09.6]}
26... Qa7 {[%clk 0:02:12.6]} 27. Kg3 {[%clk 0:00:55.3]} 27... Bf8 {[%clk
0:02:11.1]} 28. Qd2 {[%clk 0:00:36.8]} 28... h5 {[%clk 0:01:29.9]} 29. Rb3
{[%clk 0:00:36.8]} 29... Qa4 {[%clk 0:01:26.5]} 30. Rc3 {[%clk 0:00:27.7]} 30...
Rb8 {[%clk 0:01:24.7]} 31. Kh2 {[%clk 0:00:24.3]} 31... Bb4 {[%clk 0:01:09.7]}
32. Qf4 {[%clk 0:00:22.7]} 32... Qa7 {[%clk 0:00:58.5]} 33. Rc2 {[%clk
0:00:21.4]} 33... Be7 {[%clk 0:00:58.8]} 34. g3 {[%clk 0:00:15.1]} 34... Kg7
{[%clk 0:00:58.1]} 35. Ng5 {[%clk 0:00:14.3]} 35... Bxg5 {[%clk 0:00:45.7]} 36.
Qxg5 {[%clk 0:00:15.2]} 36... Kg8 {[%clk 0:00:37.1]} 37. Qf6 {[%clk 0:00:15.1]}
37... Qb7 {[%clk 0:00:33.4]} 38. Rd2 {[%clk 0:00:13.1]} 38... Qc7 {[%clk
0:00:33.2]} 39. b4 {[%clk 0:00:11.9]} 39... Qb6 {[%clk 0:00:18.5]} 40. Rd7
{[%clk 0:00:10.2]} 40... Rf8 {[%clk 0:00:19.2]} 41. Qf4 {[%clk 0:00:08]} 41...
Qc6 {[%clk 0:00:19.7]} 42. Re7 {[%clk 0:00:04.9]} 42... Qb6 {[%clk 0:00:19.2]}
43. Rd7 {[%clk 0:00:02.6]} 43... Qc6 {[%clk 0:00:19.6]} 44. Rd6 {[%clk
0:00:02.9]} 44... Qb5 {[%clk 0:00:19.6]} 45. Rd4 {[%clk 0:00:02.9]} 45... Rc8
{[%clk 0:00:19.3]} 46. Qf6 {[%clk 0:00:02.8]} 46... Qb6 {[%clk 0:00:19.6]} 47.
Rf4 {[%clk 0:00:01.9]} 47... Rf8 {[%clk 0:00:18.7]} 48. Qe7 {[%clk 0:00:02.2]}
48... Qb5 {[%clk 0:00:17.1]} 49. Qc5 {[%clk 0:00:01.8]} 49... Rb8 {[%clk
0:00:15.7]} 50. Qxb5 {[%clk 0:00:01.6]} 50... Rxb5 {[%clk 0:00:16.6]} 51. Re4
{[%clk 0:00:02.2]} 51... Kf8 {[%clk 0:00:17.1]} 52. Kg2 {[%clk 0:00:02.9]} 52...
Ke7 {[%clk 0:00:17.2]} 53. Kf3 {[%clk 0:00:03.6]} 53... Rd5 {[%clk 0:00:16.5]}
54. Kf4 {[%clk 0:00:03.9]} 54... Rd2 {[%clk 0:00:16.5]} 55. f3 {[%clk
0:00:04.2]} 55... Rb2 {[%clk 0:00:17.3]} 56. Rc4 {[%clk 0:00:04.7]} 56... Rb3
{[%clk 0:00:17.6]} 57. Rc7+ {[%clk 0:00:04.4]} 57... Kf8 {[%clk 0:00:17.6]} 58.
Rb7 {[%clk 0:00:04.7]} 58... Kg7 {[%clk 0:00:17.4]} 59. g4 {[%clk 0:00:03.7]}
59... hxg4 {[%clk 0:00:15.4]} 60. fxg4 {[%clk 0:00:03.7]} 60... Rb1 {[%clk
0:00:15.7]} 61. b5 {[%clk 0:00:03.9]} 61... Rb4+ {[%clk 0:00:15.9]} 62. Kf3
{[%clk 0:00:04]} 62... Rb3+ {[%clk 0:00:16.4]} 63. Kf2 {[%clk 0:00:04.3]} 63...
Rb4 {[%clk 0:00:16.8]} 64. g5 {[%clk 0:00:03.8]} 64... Re4 {[%clk 0:00:16.2]}
65. b6 {[%clk 0:00:03.3]} 65... Rxe5 {[%clk 0:00:16.6]} 66. Rc7 {[%clk
0:00:03.9]} 66... Rb5 {[%clk 0:00:16.7]} 67. b7 {[%clk 0:00:04.4]} 67... Rb4
{[%clk 0:00:16.8]} 68. Ke3 {[%clk 0:00:04.4]} 68... e5 {[%clk 0:00:17.2]} 69.
Kd3 {[%clk 0:00:04.3]} 69... e4+ {[%clk 0:00:17.4]} 70. Ke3 {[%clk 0:00:04]}
70... Rb1 {[%clk 0:00:02.1]} 71. Kxe4 {[%clk 0:00:04.2]} 71... Rb5 {[%clk
0:00:02.8]} 72. Kd4 {[%clk 0:00:04.5]} 72... Rb1 {[%clk 0:00:03.5]} 73. Kd5
{[%clk 0:00:04.8]} 73... Rd1+ {[%clk 0:00:02.9]} 74. Kc6 {[%clk 0:00:04.9]}
74... Rc1+ {[%clk 0:00:03.5]} 75. Kd7 {[%clk 0:00:05.1]} 1-0

[Event "Early-Titled-Tuesday-Blitz-September-12-2023"]
[Site "Chess.com"]
[Date "2023.09.12"]
[Round "7"]
[White "KatakuriDono"]
[Black "surrenderPLS"]
[Result "1-0"]
[WhiteElo "2340"]
[BlackElo "2476"]
[TimeControl "180+1"]
[EndTime "9:19:45 PDT"]
[Termination "KatakuriDono won by checkmate"]

1. d4 {[%clk 0:03:00.9]} 1... Nf6 {[%clk 0:02:59.5]} 2. c4 {[%clk 0:03:01.3]}
2... g6 {[%clk 0:02:58.3]} 3. Nc3 {[%clk 0:03:01.3]} 3... Bg7 {[%clk 0:02:59.2]}
4. e4 {[%clk 0:03:01.5]} 4... d6 {[%clk 0:02:59.8]} 5. Nge2 {[%clk 0:03:02.1]}
5... O-O {[%clk 0:02:59.5]} 6. Ng3 {[%clk 0:03:02.7]} 6... c5 {[%clk 0:02:53]}
7. d5 {[%clk 0:03:03.1]} 7... e6 {[%clk 0:02:53.4]} 8. Be2 {[%clk 0:03:03]} 8...
exd5 {[%clk 0:02:53.6]} 9. exd5 {[%clk 0:03:03.9]} 9... Re8 {[%clk 0:02:53]} 10.
O-O {[%clk 0:03:04.1]} 10... Nbd7 {[%clk 0:02:53.1]} 11. Bf4 {[%clk 0:03:03.8]}
11... Ne5 {[%clk 0:02:52.9]} 12. h3 {[%clk 0:02:58.5]} 12... a6 {[%clk
0:02:51.7]} 13. a4 {[%clk 0:02:58]} 13... Rb8 {[%clk 0:02:48]} 14. Re1 {[%clk
0:02:55.9]} 14... Bd7 {[%clk 0:02:41.2]} 15. Bf1 {[%clk 0:02:53.3]} 15... h6
{[%clk 0:02:25.4]} 16. Nge4 {[%clk 0:02:51.6]} 16... Nxe4 {[%clk 0:02:23.6]} 17.
Nxe4 {[%clk 0:02:51.2]} 17... Bf5 {[%clk 0:02:20.3]} 18. Ng3 {[%clk 0:02:35.6]}
18... Bd7 {[%clk 0:02:16.7]} 19. Qd2 {[%clk 0:02:32.6]} 19... Kh7 {[%clk
0:02:15.3]} 20. Ne4 {[%clk 0:02:28.9]} 20... Bf5 {[%clk 0:02:13.1]} 21. Ng3
{[%clk 0:02:29]} 21... Bd7 {[%clk 0:02:11.5]} 22. Ne4 {[%clk 0:02:25.2]} 22...
Qc7 {[%clk 0:02:11.8]} 23. Rab1 {[%clk 0:02:18.2]} 23... b5 {[%clk 0:02:09.9]}
24. axb5 {[%clk 0:02:15.4]} 24... axb5 {[%clk 0:02:10.1]} 25. cxb5 {[%clk
0:02:12.2]} 25... Bxb5 {[%clk 0:02:10.7]} 26. Bxb5 {[%clk 0:02:05.6]} 26... Rxb5
{[%clk 0:02:11.6]} 27. b4 {[%clk 0:02:02.2]} 27... Rxb4 {[%clk 0:02:05.7]} 28.
Rxb4 {[%clk 0:01:59.7]} 28... cxb4 {[%clk 0:02:06.6]} 29. Bxe5 {[%clk
0:01:54.7]} 29... Rxe5 {[%clk 0:02:02.6]} 30. Qxb4 {[%clk 0:01:52.9]} 30... Rxd5
{[%clk 0:01:58.6]} 31. g3 {[%clk 0:01:40.7]} 31... Rd4 {[%clk 0:01:46.6]} 32.
Qb5 {[%clk 0:01:32.5]} 32... d5 {[%clk 0:01:41.4]} 33. Nc5 {[%clk 0:01:32.4]}
33... Rc4 {[%clk 0:01:33.8]} 34. Nd3 {[%clk 0:01:28.4]} 34... Qc6 {[%clk
0:01:17.8]} 35. Qb8 {[%clk 0:01:23.9]} 35... Re4 {[%clk 0:01:07.1]} 36. Rb1
{[%clk 0:01:17.9]} 36... Qc2 {[%clk 0:01:00.7]} 37. Qb5 {[%clk 0:01:12.7]} 37...
Rd4 {[%clk 0:00:51.8]} 38. Nf4 {[%clk 0:01:05.5]} 38... Rd2 {[%clk 0:00:44.8]}
39. Rf1 {[%clk 0:01:01.9]} 39... Bd4 {[%clk 0:00:44]} 40. Qd7 {[%clk 0:00:45.8]}
40... Bxf2+ {[%clk 0:00:41.3]} 41. Kh1 {[%clk 0:00:44.6]} 41... Qe4+ {[%clk
0:00:39.5]} 42. Ng2 {[%clk 0:00:44.9]} 42... Qe6 {[%clk 0:00:25]} 43. Qxe6
{[%clk 0:00:45.1]} 43... fxe6 {[%clk 0:00:25.9]} 44. Nf4 {[%clk 0:00:45.6]}
44... Bxg3 {[%clk 0:00:23.5]} 45. Nxe6 {[%clk 0:00:44.1]} 45... Rf2 {[%clk
0:00:23.1]} 46. Rb1 {[%clk 0:00:40.2]} 46... Rf7 {[%clk 0:00:21.1]} 47. Rd1
{[%clk 0:00:38.4]} 47... Rd7 {[%clk 0:00:20.2]} 48. Nf8+ {[%clk 0:00:38.7]}
48... Kg7 {[%clk 0:00:20.5]} 49. Nxd7 {[%clk 0:00:39.6]} 49... h5 {[%clk
0:00:20.5]} 50. Rxd5 {[%clk 0:00:40]} 50... Kh6 {[%clk 0:00:21.1]} 51. Kg2
{[%clk 0:00:40.1]} 51... Bf4 {[%clk 0:00:20.8]} 52. Nf6 {[%clk 0:00:39.2]} 52...
Kg7 {[%clk 0:00:20.1]} 53. Ne4 {[%clk 0:00:38.7]} 53... Kh6 {[%clk 0:00:19.2]}
54. Kf3 {[%clk 0:00:38.9]} 54... Bb8 {[%clk 0:00:18.5]} 55. h4 {[%clk
0:00:39.3]} 55... Kg7 {[%clk 0:00:18.3]} 56. Ng5 {[%clk 0:00:39.2]} 56... Bh2
{[%clk 0:00:16.4]} 57. Rd7+ {[%clk 0:00:39.2]} 57... Kg8 {[%clk 0:00:16.8]} 58.
Ke4 {[%clk 0:00:39.2]} 58... Kf8 {[%clk 0:00:16.7]} 59. Kd5 {[%clk 0:00:39.5]}
59... Ke8 {[%clk 0:00:17]} 60. Ke6 {[%clk 0:00:39.8]} 60... Bg3 {[%clk
0:00:17.5]} 61. Rg7 {[%clk 0:00:39.5]} 61... Kd8 {[%clk 0:00:16.8]} 62. Rxg6
{[%clk 0:00:39.4]} 62... Bxh4 {[%clk 0:00:16.8]} 63. Nf7+ {[%clk 0:00:38.5]}
63... Kc7 {[%clk 0:00:17]} 64. Rh6 {[%clk 0:00:38]} 64... Be1 {[%clk 0:00:15.8]}
65. Rxh5 {[%clk 0:00:38.3]} 65... Kb6 {[%clk 0:00:15.5]} 66. Kd5 {[%clk
0:00:37.5]} 66... Kc7 {[%clk 0:00:14.7]} 67. Rh1 {[%clk 0:00:36.9]} 67... Bg3
{[%clk 0:00:13.5]} 68. Ne5 {[%clk 0:00:36.9]} 68... Kb6 {[%clk 0:00:12.9]} 69.
Rc1 {[%clk 0:00:36.3]} 69... Bf4 {[%clk 0:00:11.9]} 70. Rc2 {[%clk 0:00:36.7]}
70... Bg3 {[%clk 0:00:11.8]} 71. Nd7+ {[%clk 0:00:36.6]} 71... Kb5 {[%clk
0:00:11.9]} 72. Rb2+ {[%clk 0:00:36.5]} 72... Ka4 {[%clk 0:00:12.3]} 73. Rb1
{[%clk 0:00:37]} 73... Ka3 {[%clk 0:00:12.4]} 74. Kc4 {[%clk 0:00:37.1]} 74...
Ka2 {[%clk 0:00:12.6]} 75. Rb7 {[%clk 0:00:37]} 75... Bd6 {[%clk 0:00:11.7]} 76.
Nc5 {[%clk 0:00:37]} 76... Be5 {[%clk 0:00:10.9]} 77. Nd3 {[%clk 0:00:36.7]}
77... Bf6 {[%clk 0:00:07.5]} 78. Nc1+ {[%clk 0:00:36.5]} 78... Ka3 {[%clk
0:00:07.7]} 79. Rb3+ {[%clk 0:00:31.3]} 79... Ka4 {[%clk 0:00:07.5]} 80. Rb6
{[%clk 0:00:31.4]} 80... Ka3 {[%clk 0:00:07.8]} 81. Rxf6 {[%clk 0:00:30.8]}
81... Kb2 {[%clk 0:00:08.7]} 82. Nd3+ {[%clk 0:00:30.7]} 82... Kc2 {[%clk
0:00:09.6]} 83. Rf2+ {[%clk 0:00:30.3]} 83... Kd1 {[%clk 0:00:10.2]} 84. Nc5
{[%clk 0:00:28.3]} 84... Ke1 {[%clk 0:00:10.4]} 85. Ra2 {[%clk 0:00:28.3]} 85...
Kd1 {[%clk 0:00:11.3]} 86. Kc3 {[%clk 0:00:28.4]} 86... Ke1 {[%clk 0:00:11.6]}
87. Kd3 {[%clk 0:00:28.8]} 87... Kf1 {[%clk 0:00:12.5]} 88. Ke3 {[%clk
0:00:29.2]} 88... Kg1 {[%clk 0:00:13.4]} 89. Kf3 {[%clk 0:00:29.6]} 89... Kh1
{[%clk 0:00:14.3]} 90. Kg3 {[%clk 0:00:30]} 90... Kg1 {[%clk 0:00:15.2]} 91.
Ra1# {[%clk 0:00:30.6]} 1-0

[Event "Early-Titled-Tuesday-Blitz-September-12-2023"]
[Site "Chess.com"]
[Date "2023.09.12"]
[Round "7"]
[White "lamomiajunior"]
[Black "kleopl"]
[Result "0-1"]
[WhiteElo "2692"]
[BlackElo "2526"]
[TimeControl "180+1"]
[EndTime "9:19:50 PDT"]
[Termination "kleopl won by resignation"]

1. d4 {[%clk 0:03:00.9]} 1... Nf6 {[%clk 0:02:59]} 2. Nc3 {[%clk 0:03:00.7]}
2... d5 {[%clk 0:02:58.1]} 3. Bf4 {[%clk 0:03:01.2]} 3... a6 {[%clk 0:02:58.2]}
4. e3 {[%clk 0:03:01.6]} 4... Bf5 {[%clk 0:02:55.9]} 5. Bd3 {[%clk 0:03:00.2]}
5... e6 {[%clk 0:02:55]} 6. Nge2 {[%clk 0:02:58.2]} 6... Bxd3 {[%clk 0:02:50.4]}
7. cxd3 {[%clk 0:02:58.1]} 7... Bd6 {[%clk 0:02:46.9]} 8. Qb3 {[%clk 0:02:57.8]}
8... b6 {[%clk 0:02:45]} 9. O-O {[%clk 0:02:55.9]} 9... O-O {[%clk 0:02:44.3]}
10. Bxd6 {[%clk 0:02:51.2]} 10... Qxd6 {[%clk 0:02:40.7]} 11. e4 {[%clk
0:02:51.4]} 11... Qe7 {[%clk 0:02:32.1]} 12. Rfe1 {[%clk 0:02:48.9]} 12... Qd7
{[%clk 0:02:26]} 13. Rad1 {[%clk 0:02:47.4]} 13... Nc6 {[%clk 0:02:23.9]} 14. a3
{[%clk 0:02:30.8]} 14... Rfd8 {[%clk 0:02:20.7]} 15. h3 {[%clk 0:02:29.5]} 15...
Rac8 {[%clk 0:02:09.5]} 16. e5 {[%clk 0:02:29.4]} 16... Ne8 {[%clk 0:02:09.1]}
17. f4 {[%clk 0:02:29.2]} 17... Na5 {[%clk 0:01:59.1]} 18. Qc2 {[%clk
0:02:26.2]} 18... c5 {[%clk 0:01:59.3]} 19. Qd2 {[%clk 0:02:22.1]} 19... Nb3
{[%clk 0:01:55.9]} 20. Qe3 {[%clk 0:02:22.4]} 20... g6 {[%clk 0:01:49.7]} 21.
Qf2 {[%clk 0:02:17.1]} 21... Nc7 {[%clk 0:01:48.3]} 22. dxc5 {[%clk 0:02:09.4]}
22... bxc5 {[%clk 0:01:47.1]} 23. d4 {[%clk 0:01:59.5]} 23... Nb5 {[%clk
0:01:38.1]} 24. dxc5 {[%clk 0:01:24.2]} 24... Nxc5 {[%clk 0:01:39]} 25. Nxb5
{[%clk 0:01:18.1]} 25... Qxb5 {[%clk 0:01:38]} 26. Nd4 {[%clk 0:01:08.7]} 26...
Qb7 {[%clk 0:01:14.4]} 27. b4 {[%clk 0:01:00.6]} 27... Ne4 {[%clk 0:01:13.6]}
28. Qh4 {[%clk 0:01:00.7]} 28... Re8 {[%clk 0:01:07.8]} 29. Nf3 {[%clk
0:00:55.4]} 29... Qe7 {[%clk 0:01:04.3]} 30. Ng5 {[%clk 0:00:44.1]} 30... Nxg5
{[%clk 0:01:03.7]} 31. fxg5 {[%clk 0:00:44.8]} 31... Rc4 {[%clk 0:01:02.9]} 32.
Qg3 {[%clk 0:00:34.4]} 32... Rec8 {[%clk 0:01:01.8]} 33. Rf1 {[%clk 0:00:32.9]}
33... Rc3 {[%clk 0:01:00.1]} 34. Qg4 {[%clk 0:00:21]} 34... Rxa3 {[%clk
0:00:59.9]} 35. Rf6 {[%clk 0:00:20.4]} 35... Rc4 {[%clk 0:00:50.9]} 36. Qe2
{[%clk 0:00:19.9]} 36... Rxb4 {[%clk 0:00:48.4]} 37. Rdf1 {[%clk 0:00:19.8]}
37... Rb7 {[%clk 0:00:39.2]} 38. Qc2 {[%clk 0:00:18.3]} 38... Rc7 {[%clk
0:00:35.8]} 39. Qb2 {[%clk 0:00:17.9]} 39... Qc5+ {[%clk 0:00:30]} 40. Kh1
{[%clk 0:00:17.8]} 40... Rc3 {[%clk 0:00:20.1]} 41. Qb8+ {[%clk 0:00:17.3]}
41... Rc8 {[%clk 0:00:20.3]} 42. Qb7 {[%clk 0:00:18]} 42... Qc7 {[%clk
0:00:20.5]} 43. Qxa6 {[%clk 0:00:14.1]} 43... Rc1 {[%clk 0:00:19.2]} 44. Kh2
{[%clk 0:00:11]} 44... Rxf1 {[%clk 0:00:18.2]} 45. Rxf1 {[%clk 0:00:11.9]} 45...
Qxe5+ {[%clk 0:00:18.2]} 46. Kh1 {[%clk 0:00:12.6]} 46... Rf8 {[%clk 0:00:16]}
47. h4 {[%clk 0:00:09.3]} 47... Qe4 {[%clk 0:00:14.8]} 48. Rf3 {[%clk
0:00:05.9]} 48... Qxh4+ {[%clk 0:00:14.8]} 49. Kg1 {[%clk 0:00:06]} 49... Qxg5
{[%clk 0:00:14.8]} 50. Qb7 {[%clk 0:00:05.3]} 50... h5 {[%clk 0:00:14.4]} 51.
Kh2 {[%clk 0:00:05.2]} 51... Qe5+ {[%clk 0:00:14.6]} 52. Kg1 {[%clk 0:00:05.8]}
52... Kg7 {[%clk 0:00:15.1]} 53. Kf2 {[%clk 0:00:05.5]} 53... Qd4+ {[%clk
0:00:15]} 54. Kf1 {[%clk 0:00:06.2]} 54... Qe5 {[%clk 0:00:14.3]} 55. Kf2 {[%clk
0:00:06.8]} 55... d4 {[%clk 0:00:14]} 56. Qd7 {[%clk 0:00:06.5]} 56... Qd5
{[%clk 0:00:10.8]} 57. Qe7 {[%clk 0:00:05.8]} 57... Qe5 {[%clk 0:00:09.5]} 58.
Qd7 {[%clk 0:00:04.2]} 58... Qe4 {[%clk 0:00:09.7]} 59. Qe7 {[%clk 0:00:04.1]}
59... Qc2+ {[%clk 0:00:09.1]} 60. Kg3 {[%clk 0:00:04.4]} 60... d3 {[%clk
0:00:09.3]} 61. Qf6+ {[%clk 0:00:04.8]} 61... Kg8 {[%clk 0:00:09.4]} 62. Qd4
{[%clk 0:00:04.9]} 62... d2 {[%clk 0:00:08.6]} 63. Rd3 {[%clk 0:00:04]} 63...
Qc7+ {[%clk 0:00:08.2]} 64. Kf2 {[%clk 0:00:04.3]} 64... Rc8 {[%clk 0:00:05.8]}
65. Rxd2 {[%clk 0:00:04.9]} 65... Qc5 {[%clk 0:00:06.2]} 66. Qxc5 {[%clk
0:00:03.5]} 66... Rxc5 {[%clk 0:00:07.1]} 67. Kf3 {[%clk 0:00:04.4]} 67... Rf5+
{[%clk 0:00:07]} 68. Kg3 {[%clk 0:00:05.1]} 68... Kg7 {[%clk 0:00:07.6]} 69. Kh3
{[%clk 0:00:05.3]} 69... g5 {[%clk 0:00:07.8]} 70. g3 {[%clk 0:00:05.2]} 70...
Ra5 {[%clk 0:00:07.9]} 71. Kg2 {[%clk 0:00:05.3]} 71... Ra3 {[%clk 0:00:08.2]}
72. Re2 {[%clk 0:00:05.8]} 72... Kg6 {[%clk 0:00:08.1]} 73. Rf2 {[%clk
0:00:05.9]} 73... h4 {[%clk 0:00:08.1]} 74. g4 {[%clk 0:00:06]} 74... Rg3+
{[%clk 0:00:07.1]} 75. Kh2 {[%clk 0:00:06.7]} 75... Rxg4 {[%clk 0:00:08]} 76.
Rf3 {[%clk 0:00:07.5]} 76... Rf4 {[%clk 0:00:08.4]} 77. Re3 {[%clk 0:00:08]}
77... Rf2+ {[%clk 0:00:08.1]} 78. Kh3 {[%clk 0:00:08.3]} 78... Rf5 {[%clk
0:00:08]} 79. Kg4 {[%clk 0:00:08.4]} 79... Rf4+ {[%clk 0:00:07.8]} 80. Kh3
{[%clk 0:00:08.7]} 80... Ra4 {[%clk 0:00:07.6]} 81. Re5 {[%clk 0:00:08.8]} 81...
Ra6 {[%clk 0:00:06.3]} 82. Kg4 {[%clk 0:00:08.9]} 82... f6 {[%clk 0:00:06.4]}
83. Kh3 {[%clk 0:00:09.8]} 83... fxe5 {[%clk 0:00:06.4]} 0-1

[Event "Early-Titled-Tuesday-Blitz-September-12-2023"]
[Site "Chess.com"]
[Date "2023.09.12"]
[Round "7"]
[White "wqws"]
[Black "jaskol95"]
[Result "1/2-1/2"]
[WhiteElo "2684"]
[BlackElo "2550"]
[TimeControl "180+1"]
[EndTime "9:19:56 PDT"]
[Termination "Game drawn by repetition"]

1. e4 {[%clk 0:03:00.4]} 1... c5 {[%clk 0:03:00.4]} 2. Nf3 {[%clk 0:03:00.9]}
2... e6 {[%clk 0:03:00.2]} 3. d4 {[%clk 0:03:01.6]} 3... cxd4 {[%clk 0:02:57.9]}
4. Nxd4 {[%clk 0:03:02.5]} 4... Nc6 {[%clk 0:02:58.6]} 5. Nc3 {[%clk 0:03:02.9]}
5... Qc7 {[%clk 0:02:59.1]} 6. Be3 {[%clk 0:03:03.3]} 6... a6 {[%clk 0:02:59.3]}
7. a3 {[%clk 0:03:03.9]} 7... b5 {[%clk 0:02:57.8]} 8. Nxc6 {[%clk 0:03:02.4]}
8... Qxc6 {[%clk 0:02:55.5]} 9. Be2 {[%clk 0:03:03]} 9... Bb7 {[%clk 0:02:54.5]}
10. O-O {[%clk 0:03:02.7]} 10... Nf6 {[%clk 0:02:48.1]} 11. f3 {[%clk
0:03:02.2]} 11... Bc5 {[%clk 0:02:46.3]} 12. Qd2 {[%clk 0:02:56.9]} 12... d5
{[%clk 0:02:31.2]} 13. exd5 {[%clk 0:02:49.1]} 13... Bxe3+ {[%clk 0:02:25.9]}
14. Qxe3 {[%clk 0:02:48.9]} 14... Nxd5 {[%clk 0:02:26.6]} 15. Nxd5 {[%clk
0:02:48.2]} 15... Qxd5 {[%clk 0:02:27.5]} 16. Rad1 {[%clk 0:02:47.2]} 16... Qc6
{[%clk 0:02:27.1]} 17. c3 {[%clk 0:02:42.8]} 17... O-O {[%clk 0:02:26.6]} 18.
Bd3 {[%clk 0:02:41.9]} 18... Rad8 {[%clk 0:02:12.5]} 19. Rf2 {[%clk 0:02:38.3]}
19... Qc7 {[%clk 0:02:07.7]} 20. Rfd2 {[%clk 0:02:38]} 20... g6 {[%clk
0:02:06.5]} 21. Bf1 {[%clk 0:02:29]} 21... Bd5 {[%clk 0:01:50.2]} 22. Rd4 {[%clk
0:02:20.7]} 22... Rd7 {[%clk 0:01:32.1]} 23. Qh6 {[%clk 0:02:11.2]} 23... Rfd8
{[%clk 0:01:24.3]} 24. Rh4 {[%clk 0:02:10.8]} 24... f6 {[%clk 0:01:23]} 25. Rhd4
{[%clk 0:02:09.9]} 25... Bc4 {[%clk 0:01:08.6]} 26. Bxc4 {[%clk 0:01:17.4]}
26... bxc4 {[%clk 0:01:07.5]} 27. Qe3 {[%clk 0:01:13.5]} 27... e5 {[%clk
0:01:00.2]} 28. Rxd7 {[%clk 0:01:11.6]} 28... Rxd7 {[%clk 0:01:01]} 29. Rxd7
{[%clk 0:01:04.3]} 29... Qxd7 {[%clk 0:01:01.9]} 30. h3 {[%clk 0:00:55.7]} 30...
Kg7 {[%clk 0:00:51.6]} 31. Qc5 {[%clk 0:00:51.9]} 31... Qd1+ {[%clk 0:00:34.5]}
32. Kh2 {[%clk 0:00:48.3]} 32... Qd2 {[%clk 0:00:34.1]} 33. Qe7+ {[%clk
0:00:42.7]} 33... Kh6 {[%clk 0:00:33.8]} 34. Qxf6 {[%clk 0:00:41.6]} 34... Qxb2
{[%clk 0:00:28.3]} 35. h4 {[%clk 0:00:30]} 35... Qxa3 {[%clk 0:00:22.4]} 36.
Qg5+ {[%clk 0:00:20.9]} 36... Kg7 {[%clk 0:00:21.6]} 37. Qxe5+ {[%clk
0:00:21.5]} 37... Kf7 {[%clk 0:00:19.8]} 38. Qd5+ {[%clk 0:00:21.6]} 38... Kf6
{[%clk 0:00:17.1]} 39. Qxc4 {[%clk 0:00:21]} 39... a5 {[%clk 0:00:17.7]} 40.
Qd4+ {[%clk 0:00:20.6]} 40... Kf7 {[%clk 0:00:17.3]} 41. Qd7+ {[%clk 0:00:20.4]}
41... Kf6 {[%clk 0:00:17.1]} 42. c4 {[%clk 0:00:20.7]} 42... a4 {[%clk
0:00:16.1]} 43. Qd4+ {[%clk 0:00:19.7]} 43... Ke7 {[%clk 0:00:15.7]} 44. c5
{[%clk 0:00:18.9]} 44... Qb3 {[%clk 0:00:13.8]} 45. Qd6+ {[%clk 0:00:18.8]}
45... Kf7 {[%clk 0:00:14.4]} 46. c6 {[%clk 0:00:19]} 46... Qe6 {[%clk
0:00:09.6]} 47. Qf4+ {[%clk 0:00:18.1]} 47... Kg7 {[%clk 0:00:08.2]} 48. Qxa4
{[%clk 0:00:16.8]} 48... Qe5+ {[%clk 0:00:07.4]} 49. Kh3 {[%clk 0:00:17]} 49...
Qe6+ {[%clk 0:00:06.2]} 50. Kg3 {[%clk 0:00:12.8]} 50... Qe5+ {[%clk 0:00:06.4]}
51. Kf2 {[%clk 0:00:12.3]} 51... Qc5+ {[%clk 0:00:06.3]} 52. Kg3 {[%clk
0:00:12.4]} 52... Qe5+ {[%clk 0:00:06.6]} 53. Qf4 {[%clk 0:00:11.9]} 53... Qe1+
{[%clk 0:00:05.8]} 54. Kh3 {[%clk 0:00:11.6]} 54... Qe6+ {[%clk 0:00:05.8]} 55.
Kg3 {[%clk 0:00:09.6]} 55... Qxc6 {[%clk 0:00:06.5]} 56. Qe5+ {[%clk 0:00:10.1]}
56... Kf7 {[%clk 0:00:06.1]} 57. Qh8 {[%clk 0:00:09.2]} 57... Qc7+ {[%clk
0:00:05.1]} 58. Kh3 {[%clk 0:00:07.9]} 58... Qd7+ {[%clk 0:00:04.2]} 59. g4
{[%clk 0:00:08.3]} 59... Ke6 {[%clk 0:00:03.9]} 60. Qg8+ {[%clk 0:00:07.8]}
60... Ke5 {[%clk 0:00:04.5]} 61. Qc4 {[%clk 0:00:07.1]} 61... Kf6 {[%clk
0:00:03.7]} 62. Qf4+ {[%clk 0:00:07.2]} 62... Kg7 {[%clk 0:00:03.9]} 63. Qe5+
{[%clk 0:00:07.6]} 63... Kf7 {[%clk 0:00:04.1]} 64. Kg3 {[%clk 0:00:08]} 64...
Qd1 {[%clk 0:00:04.3]} 65. Qc7+ {[%clk 0:00:05.6]} 65... Kf6 {[%clk 0:00:04.4]}
66. g5+ {[%clk 0:00:04.4]} 66... Ke6 {[%clk 0:00:04.4]} 67. Qc6+ {[%clk
0:00:02.9]} 67... Ke7 {[%clk 0:00:03.6]} 68. Qc7+ {[%clk 0:00:03.1]} 68... Ke6
{[%clk 0:00:04.2]} 69. Qc4+ {[%clk 0:00:02.5]} 69... Ke7 {[%clk 0:00:04.4]} 70.
Qe4+ {[%clk 0:00:02.8]} 70... Kf7 {[%clk 0:00:04.4]} 71. Qb7+ {[%clk 0:00:03]}
71... Ke6 {[%clk 0:00:04.7]} 72. Qc6+ {[%clk 0:00:03.2]} 72... Kf7 {[%clk
0:00:04.8]} 73. Qc7+ {[%clk 0:00:03.2]} 73... Ke6 {[%clk 0:00:04.7]} 1/2-1/2